Workbook

Sheet VF
A1: TERMODINÁMICA DEL EQUILIBRIO | G1: DESTILACION FLASH
A2: FEDERICO G. SALAZAR
G3: CALCULO DE V/F
A4: N | B4: 2 | C4: Número de componentes | G4: PROCEDIMIENTO:
A5: T | B5: 700 | C5: (ºK) | G5: 1. Seleccione los números de los componentes en la carpeta ANTOINE
A6: P flash | B6: 500 | C6: (kPa) | D6: Pburb | E6: =J16*H16+J17*H17+J18*H18+J19*H19+J20*H20+J21*H21 -> 1327.662813 | F6: (kPa) | G6: 2. Ingrese los datos requeridos de las casillas en amarillo
A7: F = | B7: 55 | C7: mol / hr | D7: Procio | E7: =1/(J16/H16+J17/H17+IF(B4>=3,J18/H18,0)+IF(B4>=4,J19/H19)+IF(B4>=5,J20/H20)+IF(B4=6,J21/H21)) -> 1240.315677 | F7: (kPa) | G7: 3. Ajuste las condiciones de la destilación al intervalo de Rocío y Burbuja
A8: V = | B8: =+B7*B10 -> 48.45005896 | C8: mol / hr | G8: 4. En el menú HERRAMIENTAS seleccione SOLVER
A9: L = | B9: =+(1-B10)*B7 -> 6.549941035 | C9: mol / hr | G9: 5. Presione RESOLVER y ACEPTAR
A10: V / F | B10: 0.880910163
I11: =+IF(E6<B6,"ALIMENTACIÓN MUY FRIA",IF(E7>B6,"ALIMENTACIÓN MUY CALIENTE"," ")) -> ALIMENTACIÓN MUY CALIENTE
F12: SOLVER | G12: =+(B16*I16)/(1+$B$10*(I16-1))+(B17*I17)/(1+$B$10*(I17-1))+(B18*I18)/(1+$B$10*(I18-1))+(B19*I19)/(1+$B$10*(I19-1))+(B20*I20)/(1+$B$10*(I20-1))+(B21*I21)/(1+$B$10*(I21-1)) -> 1.076734528 | I12: =+IF(E6>B6,IF(E7<B6," ","EL FLASH NO ES POSIBLE A ESAS CONDICIONES"),"EL FLASH NO ES POSIBLE A ESAS CONDICIONES") -> EL FLASH NO ES POSIBLE A ESAS CONDICIONES
A14: componente | E14: log10 Pvap = A - [B / (T °C + C)] bar | H14: (kPa) | I14: Psati / P | K14: yi P / Psati | L14: (zi Ki) / (1+V/F(Ki-1))
A15: No. | B15: zi | C15: Fórmula | D15: componente | E15: A | F15: B | G15: C | H15: Psati | I15: Ki | J15: zi | K15: xi | L15: yi
A16: 1 | B16: 0.62 | C16: =LOOKUP(A16,ANTOINE!A22:A107,ANTOINE!C22:C107) -> CH4 | D16: =LOOKUP(A16,ANTOINE!$A$22:$A$107,ANTOINE!$B$22:$B$107) -> Metano | E16: =LOOKUP($A16,ANTOINE!$A$22:$A$107,ANTOINE!$D$22:$D$107) -> 3.7687 | F16: =LOOKUP($A16,ANTOINE!$A$22:$A$107,ANTOINE!$E$22:$E$107) -> 395.744 | G16: =LOOKUP($A16,ANTOINE!$A$22:$A$107,ANTOINE!$F$22:$F$107) -> 266.681 | H16: =+IF($E$16=0,"ND",POWER(10,$E$16-($F$16/($B$5-273.15+$G$16)))) -> 1577.894879 | I16: =+H16/$B$6 -> 3.155789758 | J16: =+B16 -> 0.62 | K16: =+(L16*$B$6)/H16 -> 0.2138626378 | L16: =+(J16*I16)/(1+$B$10*(I16-1)) -> 0.6749055219
A17: 56 | B17: 0.38 | C17: =LOOKUP(A17,ANTOINE!A23:A108,ANTOINE!C23:C108) -> CH5N | D17: =LOOKUP(A17,ANTOINE!$A$22:$A$107,ANTOINE!$B$22:$B$107) -> Metilamina | E17: =LOOKUP(A17,ANTOINE!$A$22:$A$107,ANTOINE!$D$22:$D$107) -> 4.5442 | F17: =LOOKUP($A17,ANTOINE!$A$22:$A$107,ANTOINE!$E$22:$E$107) -> 1050.66 | G17: =LOOKUP($A17,ANTOINE!$A$22:$A$107,ANTOINE!$F$22:$F$107) -> 237.83 | H17: =+IF($E17=0,"ND",POWER(10,$E17-($F17/($B$5-273.15+$G17)))) -> 919.3894429 | I17: =+H17/$B$6 -> 1.838778886 | J17: 0.38 | K17: =+(L17*$B$6)/H17 -> 0.218530357 | L17: =+(J17*I17)/(1+$B$10*(I17-1)) -> 0.4018290063
C18: =IF(A18>0,LOOKUP(A18,ANTOINE!A24:A109,ANTOINE!C24:C109)," ") ->  | D18: =IF(A18>0,LOOKUP(A18,ANTOINE!$A$22:$A$107,ANTOINE!$B$22:$B$107)," ") ->  | E18: =IF(A18>0,LOOKUP(A18,ANTOINE!$A$22:$A$107,ANTOINE!$D$22:$D$107)," ") ->  | F18: =IF(A18>0,LOOKUP($A18,ANTOINE!$A$22:$A$107,ANTOINE!$E$22:$E$107)," ") ->  | G18: =IF(A18>0,LOOKUP($A18,ANTOINE!$A$22:$A$107,ANTOINE!$F$22:$F$107)," ") ->  | H18: =+IF(A18=0,0,POWER(10,$E18-($F18/($B$5-273.15+$G18)))) -> 0 | I18: =IF(A18>0,H18/$B$6,0) -> 0 | J18: 0 | K18: =+IF(A19=0,0,(L18*$B$6)/H18) -> 0 | L18: =+(J18*I18)/(1+$B$10*(I18-1)) -> 0
C19: =IF(A19>0,LOOKUP(A19,ANTOINE!A25:A110,ANTOINE!C25:C110)," ") ->  | D19: =IF(A19>0,LOOKUP(A19,ANTOINE!$A$22:$A$107,ANTOINE!$B$22:$B$107)," ") ->  | E19: =IF(A19>0,LOOKUP(A19,ANTOINE!$A$22:$A$107,ANTOINE!$D$22:$D$107)," ") ->  | F19: =IF(A19>0,LOOKUP($A19,ANTOINE!$A$22:$A$107,ANTOINE!$E$22:$E$107)," ") ->  | G19: =IF(A19>0,LOOKUP($A19,ANTOINE!$A$22:$A$107,ANTOINE!$F$22:$F$107)," ") ->  | H19: =+IF($A19=0,0,POWER(10,$E19-($F19/($B$5-273.15+$G19)))) -> 0 | I19: =IF(A19>0,H19/$B$6,0) -> 0 | J19: 0 | K19: =+IF(A20=0,0,(L19*$B$6)/H19) -> 0 | L19: =+(J19*I19)/(1+$B$10*(I19-1)) -> 0
C20: =IF(A20>0,LOOKUP(A20,ANTOINE!A26:A111,ANTOINE!C26:C111)," ") ->  | D20: =IF(A20>0,LOOKUP(A20,ANTOINE!$A$22:$A$107,ANTOINE!$B$22:$B$107)," ") ->  | E20: =IF(A20>0,LOOKUP(A20,ANTOINE!$A$22:$A$107,ANTOINE!$D$22:$D$107)," ") ->  | F20: =IF(A20>0,LOOKUP($A20,ANTOINE!$A$22:$A$107,ANTOINE!$E$22:$E$107)," ") ->  | G20: =IF(A20>0,LOOKUP($A20,ANTOINE!$A$22:$A$107,ANTOINE!$F$22:$F$107)," ") ->  | H20: =+IF($A20=0,0,POWER(10,$E20-($F20/($B$5-273.15+$G20)))) -> 0 | I20: =IF(A20>0,H20/$B$6,0) -> 0 | J20: 0 | K20: =+IF(A20=0,0,(L20*$B$6)/H20) -> 0 | L20: =+IF(A20=0,0,(J20*I20)/(1+$B$10*(I20-1))) -> 0
C21: =IF(A21>0,LOOKUP(A21,ANTOINE!A27:A112,ANTOINE!C27:C112)," ") ->  | D21: =IF(A21>0,LOOKUP(A21,ANTOINE!$A$22:$A$107,ANTOINE!$B$22:$B$107)," ") ->  | E21: =IF(A21>0,LOOKUP(A21,ANTOINE!$A$22:$A$107,ANTOINE!$D$22:$D$107)," ") ->  | F21: =IF(A21>0,LOOKUP($A21,ANTOINE!$A$22:$A$107,ANTOINE!$E$22:$E$107)," ") ->  | G21: =IF(A21>0,LOOKUP($A21,ANTOINE!$A$22:$A$107,ANTOINE!$F$22:$F$107)," ") ->  | H21: =+IF($A21=0,0,POWER(10,$E21-($F21/($B$5-273.15+$G21)))) -> 0 | I21: =IF(A21>0,H21/$B$6,0) -> 0 | J21: 0 | K21: =+IF(A20=0,0,(L21*$B$6)/H21) -> 0 | L21: =+IF(A20=0,0,(J21*I21)/(1+$B$10*(I21-1))) -> 0
B22: =SUM(J16:J21) -> 1 | J22: =SUM(J16:J21) -> 1 | K22: =SUM(K16:K21) -> 0.4323929947 | L22: =SUM(L16:L21) -> 1.076734528
A24: REFERENCIAS BIBLIOGRÁFICAS:
A25: 1 | B25: SMITH, J.M., H.C. VAN NES & M.M. ABBOTT. (2005). Introduction to Chemical Engineering Thermodynamics. Seventh Edition. McGraw Hill. New York.
A26: 2 | B26: POLING, BRUCE; PRAUSNITZ, JOHN; & O`CONNELL, JOHN. (2001). The Properties of Gases and Liquids. Fifth edition. McGraw Hill. New York.
A27: 3 | B27: SOTO AGÜERA, ANDRÉS.(2004). Separaciones básicas: Destilación Flash. Universidad Politécnica de Madrid. Consultado en: http://www.diquima.upm.es/docencia/obiq/OB%20notas%20de%20clase%20flash.pdf

Sheet P
A1: TERMODINÁMICA DEL EQUILIBRIO | G1: DESTILACION FLASH
A2: FEDERICO G. SALAZAR
G3: CALCULO DE P
A4: N | B4: 3 | C4: Número de componentes | G4: PROCEDIMIENTO:
A5: T | B5: 700 | C5: (ºK) | G5: 1. Seleccione los números de los componentes en la carpeta ANTOINE
A6: P flash | B6: 499.9921856 | C6: (kPa) | D6: Pburb | E6: =J16*H16+J17*H17+J18*H18+J19*H19+J20*H20+J21*H21 -> 1224.941454 | F6: (kPa) | G6: 2. Ingrese los datos requeridos de las casillas en amarillo
A7: F = | B7: 55 | C7: mol / hr | D7: Procio | E7: =1/(J16/H16+J17/H17+IF(B4>=3,J18/H18,0)+IF(B4>=4,J19/H19)+IF(B4>=5,J20/H20)+IF(B4=6,J21/H21)) -> 204.3026277 | F7: (kPa) | G7: 3. Ajuste las condiciones de la destilación al intervalo de Rocío y Burbuja
A8: V = | B8: =+B7*B10 -> 48.45005 | C8: mol / hr | G8: 4. En el menú HERRAMIENTAS seleccione SOLVER
A9: L = | B9: =+(1-B10)*B7 -> 6.54995 | C9: mol / hr | G9: 5. Presione RESOLVER y ACEPTAR
A10: V / F | B10: 0.88091
I11: =+IF(E6<B6,"ALIMENTACIÓN MUY FRIA",IF(E7>B6,"ALIMENTACIÓN MUY CALIENTE"," ")) -> 
F12: SOLVER | G12: =+(B16*H16/B6)/(1+B10*(H16/B6-1))+(B17*H17/B6)/(1+B10*(H17/B6-1))+(B18*H18/B6)/(1+B10*(H18/B6-1))+(B19*H19/B6)/(1+B10*(H19/B6-1))+(B20*H20/B6)/(1+B10*(H20/B6-1))+(B21*H21/B6)/(1+B10*(H21/B6-1)) -> 1.000000924 | I12: =+IF(E6>B6,IF(E7<B6," ","EL FLASH NO ES POSIBLE A ESAS CONDICIONES"),"EL FLASH NO ES POSIBLE A ESAS CONDICIONES") -> 
A14: componente | E14: log10 Pvap = A - [B / (T °C + C)] bar | H14: (kPa) | I14: Psati / P | K14: yi P / Psati | L14: (zi Ki) / (1+V/F(Ki-1))
A15: No. | B15: zi | C15: Fórmula | D15: componente | E15: A | F15: B | G15: C | H15: Psati | I15: Ki | J15: zi | K15: xi | L15: yi
A16: 1 | B16: 0.6 | C16: =LOOKUP(A16,ANTOINE!A22:A107,ANTOINE!C22:C107) -> CH4 | D16: =LOOKUP(A16,ANTOINE!$A$22:$A$107,ANTOINE!$B$22:$B$107) -> Metano | E16: =LOOKUP($A16,ANTOINE!$A$22:$A$107,ANTOINE!$D$22:$D$107) -> 3.7687 | F16: =LOOKUP($A16,ANTOINE!$A$22:$A$107,ANTOINE!$E$22:$E$107) -> 395.744 | G16: =LOOKUP($A16,ANTOINE!$A$22:$A$107,ANTOINE!$F$22:$F$107) -> 266.681 | H16: =+IF($E$16=0,"ND",POWER(10,$E$16-($F$16/($B$5-273.15+$G$16)))) -> 1577.894879 | I16: =+H16/$B$6 -> 3.15583908 | J16: =+B16 -> 0.6 | K16: =+(L16*$B$6)/H16 -> 0.2069607663 | L16: =+(J16*I16)/(1+$B$10*(I16-1)) -> 0.6531348745
A17: 56 | B17: 0.3 | C17: =LOOKUP(A17,ANTOINE!A23:A108,ANTOINE!C23:C108) -> CH5N | D17: =LOOKUP(A17,ANTOINE!$A$22:$A$107,ANTOINE!$B$22:$B$107) -> Metilamina | E17: =LOOKUP(A17,ANTOINE!$A$22:$A$107,ANTOINE!$D$22:$D$107) -> 4.5442 | F17: =LOOKUP($A17,ANTOINE!$A$22:$A$107,ANTOINE!$E$22:$E$107) -> 1050.66 | G17: =LOOKUP($A17,ANTOINE!$A$22:$A$107,ANTOINE!$F$22:$F$107) -> 237.83 | H17: =+IF($E17=0,"ND",POWER(10,$E17-($F17/($B$5-273.15+$G17)))) -> 919.3894429 | I17: =+H17/$B$6 -> 1.838807624 | J17: 0.3 | K17: =+(L17*$B$6)/H17 -> 0.1725214679 | L17: =+(J17*I17)/(1+$B$10*(I17-1)) -> 0.3172337905
A18: 34 | B18: 0.1 | C18: =IF(A18>0,LOOKUP(A18,ANTOINE!A24:A109,ANTOINE!C24:C109)," ") -> C10H8 | D18: =IF(A18>0,LOOKUP(A18,ANTOINE!$A$22:$A$107,ANTOINE!$B$22:$B$107)," ") -> Naftaleno | E18: =IF(A18>0,LOOKUP(A18,ANTOINE!$A$22:$A$107,ANTOINE!$D$22:$D$107)," ") -> 4.13555 | F18: =IF(A18>0,LOOKUP($A18,ANTOINE!$A$22:$A$107,ANTOINE!$E$22:$E$107)," ") -> 1733.71 | G18: =IF(A18>0,LOOKUP($A18,ANTOINE!$A$22:$A$107,ANTOINE!$F$22:$F$107)," ") -> 201.859 | H18: =+IF(A18=0,0,POWER(10,$E18-($F18/($B$5-273.15+$G18)))) -> 23.87693252 | I18: =IF(A18>0,H18/$B$6,0) -> 0.0477546114 | J18: 0.1 | K18: =+(L18*$B$6)/H18 -> 0.6205109341 | L18: =+(J18*I18)/(1+$B$10*(I18-1)) -> 0.02963225853
C19: =IF(A19>0,LOOKUP(A19,ANTOINE!A25:A110,ANTOINE!C25:C110)," ") ->  | D19: =IF(A19>0,LOOKUP(A19,ANTOINE!$A$22:$A$107,ANTOINE!$B$22:$B$107)," ") ->  | E19: =IF(A19>0,LOOKUP(A19,ANTOINE!$A$22:$A$107,ANTOINE!$D$22:$D$107)," ") ->  | F19: =IF(A19>0,LOOKUP($A19,ANTOINE!$A$22:$A$107,ANTOINE!$E$22:$E$107)," ") ->  | G19: =IF(A19>0,LOOKUP($A19,ANTOINE!$A$22:$A$107,ANTOINE!$F$22:$F$107)," ") ->  | H19: =+IF($A19=0,0,POWER(10,$E19-($F19/($B$5-273.15+$G19)))) -> 0 | I19: =IF(A19>0,H19/$B$6,0) -> 0 | J19: 0 | K19: =+IF(A20=0,0,(L19*$B$6)/H19) -> 0 | L19: =+(J19*I19)/(1+$B$10*(I19-1)) -> 0
C20: =IF(A20>0,LOOKUP(A20,ANTOINE!A26:A111,ANTOINE!C26:C111)," ") ->  | D20: =IF(A20>0,LOOKUP(A20,ANTOINE!$A$22:$A$107,ANTOINE!$B$22:$B$107)," ") ->  | E20: =IF(A20>0,LOOKUP(A20,ANTOINE!$A$22:$A$107,ANTOINE!$D$22:$D$107)," ") ->  | F20: =IF(A20>0,LOOKUP($A20,ANTOINE!$A$22:$A$107,ANTOINE!$E$22:$E$107)," ") ->  | G20: =IF(A20>0,LOOKUP($A20,ANTOINE!$A$22:$A$107,ANTOINE!$F$22:$F$107)," ") ->  | H20: =+IF($A20=0,0,POWER(10,$E20-($F20/($B$5-273.15+$G20)))) -> 0 | I20: =IF(A20>0,H20/$B$6,0) -> 0 | J20: 0 | K20: =+IF(A20=0,0,(L20*$B$6)/H20) -> 0 | L20: =+IF(A20=0,0,(J20*I20)/(1+$B$10*(I20-1))) -> 0
C21: =IF(A21>0,LOOKUP(A21,ANTOINE!A27:A112,ANTOINE!C27:C112)," ") ->  | D21: =IF(A21>0,LOOKUP(A21,ANTOINE!$A$22:$A$107,ANTOINE!$B$22:$B$107)," ") ->  | E21: =IF(A21>0,LOOKUP(A21,ANTOINE!$A$22:$A$107,ANTOINE!$D$22:$D$107)," ") ->  | F21: =IF(A21>0,LOOKUP($A21,ANTOINE!$A$22:$A$107,ANTOINE!$E$22:$E$107)," ") ->  | G21: =IF(A21>0,LOOKUP($A21,ANTOINE!$A$22:$A$107,ANTOINE!$F$22:$F$107)," ") ->  | H21: =+IF($A21=0,0,POWER(10,$E21-($F21/($B$5-273.15+$G21)))) -> 0 | I21: =IF(A21>0,H21/$B$6,0) -> 0 | J21: 0 | K21: =+IF(A20=0,0,(L21*$B$6)/H21) -> 0 | L21: =+IF(A20=0,0,(J21*I21)/(1+$B$10*(I21-1))) -> 0
B22: =SUM(J16:J21) -> 1 | J22: =SUM(J16:J21) -> 1 | K22: =SUM(K16:K21) -> 0.9999931683 | L22: =SUM(L16:L21) -> 1.000000924
A24: REFERENCIAS BIBLIOGRÁFICAS:
A25: 1 | B25: SMITH, J.M., H.C. VAN NES & M.M. ABBOTT. (2005). Introduction to Chemical Engineering Thermodynamics. Seventh Edition. McGraw Hill. New York.
A26: 2 | B26: POLING, BRUCE; PRAUSNITZ, JOHN; & O`CONNELL, JOHN. (2001). The Properties of Gases and Liquids. Fifth edition. McGraw Hill. New York.
A27: 3 | B27: SOTO AGÜERA, ANDRÉS.(2004). Separaciones básicas: Destilación Flash. Universidad Politécnica de Madrid. Consultado en: http://www.diquima.upm.es/docencia/obiq/OB%20notas%20de%20clase%20flash.pdf

Sheet T
A1: TERMODINÁMICA DEL EQUILIBRIO | G1: DESTILACION FLASH
A2: FEDERICO G. SALAZAR
G3: CALCULO DE T
A4: N | B4: 3 | C4: Número de componentes | G4: PROCEDIMIENTO:
A5: T | B5: 700.0005458 | C5: (ºK) | G5: 1. Seleccione los números de los componentes en la carpeta ANTOINE
A6: P flash | B6: 500 | C6: (kPa) | D6: Pburb | E6: =J16*H16+J17*H17+J18*H18+J19*H19+J20*H20+J21*H21 -> 1224.94327 | F6: (kPa) | G6: 2. Ingrese los datos requeridos de las casillas en amarillo
A7: F = | B7: 55 | C7: mol / hr | D7: Procio | E7: =1/(J16/H16+J17/H17+IF(B4>=3,J18/H18,0)+IF(B4>=4,J19/H19)+IF(B4>=5,J20/H20)+IF(B4=6,J21/H21)) -> 204.3036484 | F7: (kPa) | G7: 3. Ajuste las condiciones de la destilación al intervalo de Rocío y Burbuja
A8: V = | B8: =+B7*B10 -> 48.45005 | C8: mol / hr | G8: 4. En el menú HERRAMIENTAS seleccione SOLVER
A9: L = | B9: =+(1-B10)*B7 -> 6.54995 | C9: mol / hr | G9: 5. Presione RESOLVER y ACEPTAR
A10: V / F | B10: 0.88091
I11: =+IF(E6<B6,"ALIMENTACIÓN MUY FRIA",IF(E7>B6,"ALIMENTACIÓN MUY CALIENTE"," ")) -> 
F12: SOLVER | G12: =+(B16*H16/B6)/(1+B10*(H16/B6-1))+(B17*H17/B6)/(1+B10*(H17/B6-1))+(B18*H18/B6)/(1+B10*(H18/B6-1))+(B19*H19/B6)/(1+B10*(H19/B6-1))+(B20*H20/B6)/(1+B10*(H20/B6-1))+(B21*H21/B6)/(1+B10*(H21/B6-1)) -> 1.000000036 | I12: =+IF(E6>B6,IF(E7<B6," ","EL FLASH NO ES POSIBLE A ESAS CONDICIONES"),"EL FLASH NO ES POSIBLE A ESAS CONDICIONES") -> 
A14: componente | E14: log10 Pvap = A - [B / (T °C + C)] bar | H14: (kPa) | I14: Psati / P | K14: yi P / Psati | L14: (zi Ki) / (1+V/F(Ki-1))
A15: No. | B15: zi | C15: Fórmula | D15: componente | E15: A | F15: B | G15: C | H15: Psati | I15: Ki | J15: zi | K15: xi | L15: yi
A16: 1 | B16: 0.6 | C16: =LOOKUP(A16,ANTOINE!A22:A107,ANTOINE!C22:C107) -> CH4 | D16: =LOOKUP(A16,ANTOINE!$A$22:$A$107,ANTOINE!$B$22:$B$107) -> Metano | E16: =LOOKUP($A16,ANTOINE!$A$22:$A$107,ANTOINE!$D$22:$D$107) -> 3.7687 | F16: =LOOKUP($A16,ANTOINE!$A$22:$A$107,ANTOINE!$E$22:$E$107) -> 395.744 | G16: =LOOKUP($A16,ANTOINE!$A$22:$A$107,ANTOINE!$F$22:$F$107) -> 266.681 | H16: =+IF($E$16=0,"ND",POWER(10,$E$16-($F$16/($B$5-273.15+$G$16)))) -> 1577.896511 | I16: =+H16/$B$6 -> 3.155793021 | J16: =+B16 -> 0.6 | K16: =+(L16*$B$6)/H16 -> 0.2069636629 | L16: =+(J16*I16)/(1+$B$10*(I16-1)) -> 0.653134483
A17: 56 | B17: 0.3 | C17: =LOOKUP(A17,ANTOINE!A23:A108,ANTOINE!C23:C108) -> CH5N | D17: =LOOKUP(A17,ANTOINE!$A$22:$A$107,ANTOINE!$B$22:$B$107) -> Metilamina | E17: =LOOKUP(A17,ANTOINE!$A$22:$A$107,ANTOINE!$D$22:$D$107) -> 4.5442 | F17: =LOOKUP($A17,ANTOINE!$A$22:$A$107,ANTOINE!$E$22:$E$107) -> 1050.66 | G17: =LOOKUP($A17,ANTOINE!$A$22:$A$107,ANTOINE!$F$22:$F$107) -> 237.83 | H17: =+IF($E17=0,"ND",POWER(10,$E17-($F17/($B$5-273.15+$G17)))) -> 919.3921906 | I17: =+H17/$B$6 -> 1.838784381 | J17: 0.3 | K17: =+(L17*$B$6)/H17 -> 0.1725234993 | L17: =+(J17*I17)/(1+$B$10*(I17-1)) -> 0.3172335159
A18: 34 | B18: 0.1 | C18: =IF(A18>0,LOOKUP(A18,ANTOINE!A24:A109,ANTOINE!C24:C109)," ") -> C10H8 | D18: =IF(A18>0,LOOKUP(A18,ANTOINE!$A$22:$A$107,ANTOINE!$B$22:$B$107)," ") -> Naftaleno | E18: =IF(A18>0,LOOKUP(A18,ANTOINE!$A$22:$A$107,ANTOINE!$D$22:$D$107)," ") -> 4.13555 | F18: =IF(A18>0,LOOKUP($A18,ANTOINE!$A$22:$A$107,ANTOINE!$E$22:$E$107)," ") -> 1733.71 | G18: =IF(A18>0,LOOKUP($A18,ANTOINE!$A$22:$A$107,ANTOINE!$F$22:$F$107)," ") -> 201.859 | H18: =+IF(A18=0,0,POWER(10,$E18-($F18/($B$5-273.15+$G18)))) -> 23.87706414 | I18: =IF(A18>0,H18/$B$6,0) -> 0.04775412827 | J18: 0.1 | K18: =+(L18*$B$6)/H18 -> 0.6205125728 | L18: =+(J18*I18)/(1+$B$10*(I18-1)) -> 0.02963203699
C19: =IF(A19>0,LOOKUP(A19,ANTOINE!A25:A110,ANTOINE!C25:C110)," ") ->  | D19: =IF(A19>0,LOOKUP(A19,ANTOINE!$A$22:$A$107,ANTOINE!$B$22:$B$107)," ") ->  | E19: =IF(A19>0,LOOKUP(A19,ANTOINE!$A$22:$A$107,ANTOINE!$D$22:$D$107)," ") ->  | F19: =IF(A19>0,LOOKUP($A19,ANTOINE!$A$22:$A$107,ANTOINE!$E$22:$E$107)," ") ->  | G19: =IF(A19>0,LOOKUP($A19,ANTOINE!$A$22:$A$107,ANTOINE!$F$22:$F$107)," ") ->  | H19: =+IF($A19=0,0,POWER(10,$E19-($F19/($B$5-273.15+$G19)))) -> 0 | I19: =IF(A19>0,H19/$B$6,0) -> 0 | J19: 0 | K19: =+IF(A20=0,0,(L19*$B$6)/H19) -> 0 | L19: =+(J19*I19)/(1+$B$10*(I19-1)) -> 0
C20: =IF(A20>0,LOOKUP(A20,ANTOINE!A26:A111,ANTOINE!C26:C111)," ") ->  | D20: =IF(A20>0,LOOKUP(A20,ANTOINE!$A$22:$A$107,ANTOINE!$B$22:$B$107)," ") ->  | E20: =IF(A20>0,LOOKUP(A20,ANTOINE!$A$22:$A$107,ANTOINE!$D$22:$D$107)," ") ->  | F20: =IF(A20>0,LOOKUP($A20,ANTOINE!$A$22:$A$107,ANTOINE!$E$22:$E$107)," ") ->  | G20: =IF(A20>0,LOOKUP($A20,ANTOINE!$A$22:$A$107,ANTOINE!$F$22:$F$107)," ") ->  | H20: =+IF($A20=0,0,POWER(10,$E20-($F20/($B$5-273.15+$G20)))) -> 0 | I20: =IF(A20>0,H20/$B$6,0) -> 0 | J20: 0 | K20: =+IF(A20=0,0,(L20*$B$6)/H20) -> 0 | L20: =+IF(A20=0,0,(J20*I20)/(1+$B$10*(I20-1))) -> 0
C21: =IF(A21>0,LOOKUP(A21,ANTOINE!A27:A112,ANTOINE!C27:C112)," ") ->  | D21: =IF(A21>0,LOOKUP(A21,ANTOINE!$A$22:$A$107,ANTOINE!$B$22:$B$107)," ") ->  | E21: =IF(A21>0,LOOKUP(A21,ANTOINE!$A$22:$A$107,ANTOINE!$D$22:$D$107)," ") ->  | F21: =IF(A21>0,LOOKUP($A21,ANTOINE!$A$22:$A$107,ANTOINE!$E$22:$E$107)," ") ->  | G21: =IF(A21>0,LOOKUP($A21,ANTOINE!$A$22:$A$107,ANTOINE!$F$22:$F$107)," ") ->  | H21: =+IF($A21=0,0,POWER(10,$E21-($F21/($B$5-273.15+$G21)))) -> 0 | I21: =IF(A21>0,H21/$B$6,0) -> 0 | J21: 0 | K21: =+IF(A20=0,0,(L21*$B$6)/H21) -> 0 | L21: =+IF(A20=0,0,(J21*I21)/(1+$B$10*(I21-1))) -> 0
B22: =SUM(J16:J21) -> 1 | J22: =SUM(J16:J21) -> 1 | K22: =SUM(K16:K21) -> 0.9999997349 | L22: =SUM(L16:L21) -> 1.000000036
A24: REFERENCIAS BIBLIOGRÁFICAS:
A25: 1 | B25: SMITH, J.M., H.C. VAN NES & M.M. ABBOTT. (2005). Introduction to Chemical Engineering Thermodynamics. Seventh Edition. McGraw Hill. New York.
A26: 2 | B26: POLING, BRUCE; PRAUSNITZ, JOHN; & O`CONNELL, JOHN. (2001). The Properties of Gases and Liquids. Fifth edition. McGraw Hill. New York.
A27: 3 | B27: SOTO AGÜERA, ANDRÉS.(2004). Separaciones básicas: Destilación Flash. Universidad Politécnica de Madrid. Consultado en: http://www.diquima.upm.es/docencia/obiq/OB%20notas%20de%20clase%20flash.pdf

Sheet ANTOINE
A1: CALCULO DE LA PRESION DE VAPOR PARA SUSTANCIAS PURAS
A2: ECUACION DE ANTOINE
C4: log10 Pvap = A - [B / (T °C + C)] bar
B6: T = | C6: 50 | D6: °C | E6: <---- Ingrese temperatura
B7: No. = | C7: 41 | E7: <---- Ingrese No. de Sustancia
B9: Sustancia = | C9: =LOOKUP($C$7,$A$22:$A$107,$B$22:$B$107) -> Metil Etil Cetona | D9: =LOOKUP(C7,A22:A107,C22:C107) -> C4H8O
C11: A | D11: B | E11: C
B12: Constantes = | C12: =LOOKUP($C$7,$A$22:$A$107,$D$22:$D$107) -> 4.1386 | D12: =LOOKUP($C$7,$A$22:$A$107,$E$22:$E$107) -> 1232.63 | E12: =LOOKUP($C$7,$A$22:$A$107,$F$22:$F$107) -> 218.69
B14: Valor Calculado: | C14: Pvap = | D14: =+IF($C$12=0,"ND",POWER(10,$C$12-($D$12/($C$6+$E$12)))) -> 0.3556686359 | E14: bar
B17: BASE DE DATOS
B18: Ref: POLING, BRUCE; PRAUSNITZ, JOHN & O'CONNELL, JOHN.
B19: "The Properties of Gases and Liquids". 5th edition. McGraw Hill. New York. 2001
A21: No. | B21: SUSTANCIA | C21: FORMULA | D21: A | E21: B | F21: C
A22: 1 | B22: Metano | C22: CH4 | D22: 3.7687 | E22: 395.744 | F22: 266.681
A23: 2 | B23: Etano | C23: C2H6 | D23: 3.95405 | E23: 663.72 | F23: 256.681
A24: 3 | B24: Propano | C24: C3H8 | D24: 3.92828 | E24: 803.997 | F24: 247.04
A25: 4 | B25: n-Butano | C25: C4H10 | D25: 3.93266 | E25: 935.773 | F25: 238.789
A26: 5 | B26: n-Pentano | C26: C5H12 | D26: 3.97786 | E26: 1064.84 | F26: 232.014
A27: 6 | B27: n-Hexano | C27: C6H14 | D27: 4.00139 | E27: 1170.875 | F27: 224.317
A28: 7 | B28: n-Heptano | C28: C7H16 | D28: 4.02023 | E28: 1263.909 | F28: 216.432
A29: 8 | B29: n-Octano | C29: C8H18 | D29: 4.05075 | E29: 1356.36 | F29: 209.635
A30: 9 | B30: n-Nonano | C30: C9H20 | D30: 4.07356 | E30: 1438.03 | F30: 202.694
A31: 10 | B31: Isobutano | C31: C4H10 | D31: 4.00272 | E31: 947.54 | F31: 248.87
A32: 11 | B32: Isoctano | C32: C8H18 | D32: 4.03877 | E32: 1335.22 | F32: 213.415
A33: 12 | B33: Ciclopentano | C33: C5H10 | D33: 4.06783 | E33: 1152.574 | F33: 234.51
A34: 13 | B34: Ciclohexano | C34: C6H12 | D34: 3.93002 | E34: 1182.774 | F34: 220.618
A35: 14 | B35: Metilciclopentano | C35: C6H12 | D35: 4.18199 | E35: 1295.543 | F35: 238.39
A36: 15 | B36: Metilciclohexano | C36: C7H14 | D36: 3.98232 | E36: 1290.968 | F36: 223.701
A37: 16 | B37: Etileno | C37: C2H4 | D37: 3.91382 | E37: 596.526 | F37: 256.37
A38: 17 | B38: Propileno | C38: C3H6 | D38: 3.95606 | E38: 789.624 | F38: 247.58
A39: 18 | B39: 1-Buteno | C39: C4H8 | D39: 3.9178 | E39: 908.8 | F39: 238.54
A40: 19 | B40: cis-2-Buteno | C40: C4H8 | D40: 4.00958 | E40: 967.32 | F40: 237.873
A41: 20 | B41: trans-2-Buteno | C41: C4H8 | D41: 4.00827 | E41: 967.5 | F41: 240.84
A42: 21 | B42: 1-Hexeno | C42: C6H12 | D42: 4.18199 | E42: 1295.543 | F42: 238.39
A43: 22 | B43: Isobutileno | C43: C4H8 | D43: 3.80956 | E43: 866.25 | F43: 234.64
A44: 23 | B44: 1,3-Butadieno | C44: C4H6 | D44: 3.9664 | E44: 927.21 | F44: 238.63
A45: 24 | B45: Ciclohexeno | C45: C6H10 | D45: 560.4 | E45: -9.08102 | F45: 5.75488
A46: 25 | B46: Acetileno | C46: C2H2 | D46: 3.67374 | E46: 528.67 | F46: 228.79
A47: 26 | B47: Benceno | C47: C6H6 | D47: 3.98523 | E47: 1184.24 | F47: 217.572
A48: 27 | B48: Tolueno | C48: C7H8 | D48: 4.050043 | E48: 1327.62 | F48: 217.625
A49: 28 | B49: Etilbenceno | C49: C8H10 | D49: 4.06861 | E49: 1415.77 | F49: 212.3
A50: 29 | B50: Cumeno | C50: C9H12 | D50: 4.06112 | E50: 1460.766 | F50: 207.83
A51: 30 | B51: o-Xileno | C51: C8H10 | D51: 4.09789 | E51: 1458.706 | F51: 212.041
A52: 31 | B52: m-Xileno | C52: C8H10 | D52: 4.14051 | E52: 1468.703 | F52: 216.12
A53: 32 | B53: p-Xileno | C53: C8H10 | D53: 4.10494 | E53: 1446.832 | F53: 214.627
A54: 33 | B54: Estireno | C54: C8H8
A55: 34 | B55: Naftaleno | C55: C10H8 | D55: 4.13555 | E55: 1733.71 | F55: 201.859
A56: 35 | B56: Bifenilo | C56: C12H10 | D56: 4.1887 | E56: 1841.48 | F56: 185.15
A57: 36 | B57: Formaldehido | C57: CH20
A58: 37 | B58: Acetaldehido | C58: C2H40
A59: 38 | B59: Acetato de Metilo | C59: C3H6O2 | D59: 4.18621 | E59: 1156.43 | F59: 219.69
A60: 39 | B60: Acetato de Etilo | C60: C4H8O2 | D60: 4.13361 | E60: 1195.13 | F60: 212.47
A61: 40 | B61: Acetona | C61: C3H6O | D61: 4.2184 | E61: 1197.01 | F61: 228.06
A62: 41 | B62: Metil Etil Cetona | C62: C4H8O | D62: 4.1386 | E62: 1232.63 | F62: 218.69
A63: 42 | B63: Eter dietílico | C63: C4H10O | D63: 4.10962 | E63: 1090.64 | F63: 231.2
A64: 43 | B64: Eter metil t-butílico | C64: C5H12O | D64: 3.83648 | E64: 1052.47 | F64: 210.88
A65: 44 | B65: Metanol | C65: CH4O | D65: 5.20277 | E65: 1580.08 | F65: 239.5
A66: 45 | B66: Etanol | C66: C2H6O | D66: 5.33675 | E66: 1648.22 | F66: 230.918
A67: 46 | B67: 1-Propanol | C67: C3H8O | D67: 4.99991 | E67: 1512.94 | F67: 205.807
A68: 47 | B68: 1-Butanol | C68: C4H10O | D68: 4.6493 | E68: 1395.14 | F68: 182.739
A69: 48 | B69: 1-Hexanol | C69: C6H14O | D69: 4.18948 | E69: 1295.59 | F69: 152.51
A70: 49 | B70: 2-Propanol | C70: C3H8O | D70: 5.24268 | E70: 1580.92 | F70: 219.61
A71: 50 | B71: Fenol | C71: C6H6O | D71: 4.2696 | E71: 1523.42 | F71: 175.4
A72: 51 | B72: Etilenglicol | C72: C2H6O2
A73: 52 | B73: Acido Acético | C73: C2H4O2 | D73: 4.54456 | E73: 1555.12 | F73: 224.65
A74: 53 | B74: Acido n-butírico | C74: C4H8O2 | D74: 4.8234 | E74: 1731.708 | F74: 195.955
A75: 54 | B75: Acido Benzoico | C75: C7H6O2
A76: 55 | B76: Acetonitrilo | C76: C2H3N
A77: 56 | B77: Metilamina | C77: CH5N | D77: 4.5442 | E77: 1050.66 | F77: 237.83
A78: 57 | B78: Etilamina | C78: C2H7N | D78: 4.434 | E78: 1102.88 | F78: 232.45
A79: 58 | B79: Nitrometano | C79: CH3NO2
A80: 59 | B80: Tetracloruro de carbono | C80: CCl4 | D80: 4.10445 | E80: 1265.632 | F80: 232.148
A81: 60 | B81: Cloroformo | C81: CHCl3 | D81: 3.96288 | E81: 1106.904 | F81: 218.552
A82: 61 | B82: Diclorometano | C82: CH2Cl2 | D82: 4.07622 | E82: 1070.07 | F82: 223.24
A83: 62 | B83: Cloruro de metilo | C83: CH3Cl | D83: 4.16533 | E83: 920.86 | F83: 245.58
A84: 63 | B84: Cloruro de etilo | C84: C2H5Cl | D84: 4.09088 | E84: 1020.63 | F84: 237.57
A85: 64 | B85: Clorobenceno | C85: C6H5Cl | D85: 4.02012 | E85: 1378.79 | F85: 211.7
A86: 65 | B86: Argón | C86: Ar | D86: 3.74141 | E86: 304.227 | F86: 267.32
A87: 66 | B87: Kriptón | C87: Kr | D87: 3.7556 | E87: 416.38 | F87: 264.45
A88: 67 | B88: Xenón | C88: Xe | D88: 3.76779 | E88: 566.282 | F88: 258.66
A89: 68 | B89: Helio 4 | C89: He | D89: 1.6836 | E89: 8.1548 | F89: 273.71
A90: 69 | B90: Hidrógeno | C90: H2 | D90: 2.94928 | E90: 67.5078 | F90: 275.7
A91: 70 | B91: Oxígeno | C91: O2 | D91: 3.81634 | E91: 319.013 | F91: 266.7
A92: 71 | B92: Nitrógeno | C92: N2 | D92: 3.61947 | E92: 255.68 | F92: 266.55
A93: 72 | B93: Cloro | C93: Cl2 | D93: 4.0628 | E93: 861.34 | F93: 246.33
A94: 73 | B94: Monóxido de carbono | C94: CO | D94: 3.81912 | E94: 291.743 | F94: 267.996
A95: 74 | B95: Dióxido de carbono | C95: CO2
A96: 75 | B96: Disulfuro de carbono | C96: CS2
A97: 76 | B97: Sulfuro de hidrógeno | C97: H2S | D97: 4.22882 | E97: 806.933 | F97: 251.39
A98: 77 | B98: Dióxido de Azufre | C98: SO2 | D98: 4.4072 | E98: 999.9 | F98: 237.19
A99: 78 | B99: Trióxido de Azufre | C99: SO3 | D99: 6.17575 | E99: 1735.31 | F99: 236.5
A100: 79 | B100: Oxido Nítrico | C100: NO | D100: 5.8679 | E100: 682.9386 | F100: 268.27
A101: 80 | B101: Oxido Nitroso | C101: N2O | D101: 4.12884 | E101: 654.26 | F101: 247.16
A102: 81 | B102: Cloruro de hidrógeno | C102: HCl | D102: 4.2949 | E102: 745.78 | F102: 258.88
A103: 82 | B103: Cianuro de hidrógeno | C103: CNH
A104: 83 | B104: Agua | C104: H2O | D104: 647.3 | E104: -7.77224 | F104: 1.45684
A105: 84 | B105: Amoníaco | C105: NH3 | D105: 4.4854 | E105: 926.132 | F105: 240.17
A106: 85 | B106: Acido Nítrico | C106: HNO3
A107: 86 | B107: Acido Sulfurico | C107: H2SO4
